Cogmind - Beta 14 @@@ ROGUE MODE // 2024.11.17 @ 19:08:37 Player: Fangrelle Result: Destroyed by Y-45 Defender with Heavy Assault Rifle Performance ------------- Evolutions (1) 500 Regions Visited (5) 1000 Robots Destroyed (90) 450 Value Destroyed (2413) 2413 Prototype IDs (6) 120 Alien Tech Used (0) 0 Bonus (251) 251 TOTAL SCORE: 4734 Bonus ------- High Alert Combat Kills 34 Follower Combat Kills 217 Cogmind --------- Core Integrity 0/400 Matter 274/300 Energy 280/280 System Corruption 0% Temperature Cool (9) Movement Treading (320) Ox2 Location -9/Recycling Parts ------- > --- POWER (1) -------- Cooled Ion Engine > --- PROPULSION (2) --- Improved Treads Improved Treads > --- UTILITY (4) ------ Huge Storage Unit Light Armor Plating Hacking Suite Hacking Suite > --- WEAPON (2) ------- Autogun Autogun > --- INVENTORY (25) --- Cooled Ion Engine Improved Flight Unit Improved Flight Unit Improved Flight Unit Improved Flight Unit Improved Flight Unit Improved Flight Unit Improved Flight Unit Improved Flight Unit High-capacity Storage Unit High-capacity Matter Pod (200) Improved Targeting Computer Melee Analysis Suite Light Armor Plating Light Armor Plating Shield Generator Shield Generator Beamcaster Improved Heavy Laser Autogun Autogun Improved Light Cannon Grenade Launcher Improved Datajack Plasma Cutter Peak State ------------ > --- POWER ------------ Cooled Ion Engine > --- PROPULSION ------- Light Treads Light Treads > --- UTILITY ---------- Huge Storage Unit Light Armor Plating Hacking Suite Hacking Suite > --- WEAPON ----------- Improved Heavy Laser Autogun > --- INVENTORY -------- Light Angular Momentum Engine Wheel Improved Flight Unit Improved Flight Unit Improved Flight Unit Improved Flight Unit High-capacity Storage Unit High-capacity Matter Pod Improved Targeting Computer Melee Analysis Suite Light Armor Plating Light Armor Plating Tractor Beam Beamcaster Autogun Autogun Autogun Shotgun Shotgun Shotgun Improved Light Cannon Improved Light Cannon Grenade Launcher Improved Datajack Mining Laser [Rating: 26] Favorites ----------- Power Ion Engine Engine Ion Engine Power Core Light Nuclear Core Propulsion Light Treads Treads Light Treads Leg Aluminum Leg Wheel Wheel Flight Unit Improved Flight Unit Utility Hacking Suite Storage Huge Storage Unit Hackware Hacking Suite Protection Light Armor Plating Weapon Autogun Energy Gun Small Laser Energy Cannon Advanced Beam Cannon Ballistic Gun Autogun Ballistic Cannon Improved Light Cannon Special Weapon Mining Laser Special Melee Weapon Improved Datajack Build | -11 -10 -10 -9 -9 -9 ------- Run | Yrd Mat Min Mat Sto Rec Slots Evolved 2 | . . . 2 . . Power . | . . . . . . Propulsion . | . . . . . . Utility 2 | . . . 2 . . Weapon . | . . . . . . Parts Attached 67 | . 11 5 13 38 . Power 8 | . . 1 1 6 . Engine 7 | . . . 1 6 . Core 1 | . . 1 . . . Reactor . | . . . . . . Propulsion 21 | . 3 2 6 10 . Treads 17 | . 2 . 6 9 . Leg 2 | . . 2 . . . Wheel 1 | . 1 . . . . Hover . | . . . . . . Flight 1 | . . . . 1 . Utility 13 | . 3 . 4 6 . Device . | . . . . . . Storage 2 | . 2 . . . . Processor . | . . . . . . Hackware 2 | . 1 . 1 . . Protection 9 | . . . 3 6 . Artifact . | . . . . . . Weapon 25 | . 5 2 2 16 . Energy Gun 2 | . 1 . . 1 . Energy Cannon 1 | . . . . 1 . Ballistic Gun 16 | . 3 1 2 10 . Ballistic Cannon 2 | . . 1 . 1 . Launcher . | . . . . . . Special Weapon 1 | . 1 . . . . Impact Weapon . | . . . . . . Slashing Weapon . | . . . . . . Piercing Weapon . | . . . . . . Special Melee Weapon 3 | . . . . 3 . Unidentified Prototypes 6 | . . . . 6 . Parts Lost 7 | . . 3 2 2 . Power 1 | . . . 1 . . Propulsion 3 | . . 1 1 1 . Utility 1 | . . . . 1 . Weapon 2 | . . 2 . . . Highest Loss Streak 1 | . . 1 1 1 . To Critical Strikes . | . . . . . . Average Slot Usage (%) 98 | . 97 94 98 99 100 Engine 10 | . 14 11 5 10 11 Core 1 | . . 2 4 . . Treads 17 | . 24 2 15 21 22 Leg 6 | . 1 24 6 . . Storage 12 | . 14 14 11 11 11 Hackware 18 | . 11 14 22 22 22 Protection 6 | . . . 11 10 11 Ballistic Gun 20 | . 25 20 11 20 22 Ballistic Cannon 2 | . . 3 10 . . Peak Build Rating 26 | . 15 17 21 26 25 Average Rating 18 | . 12 14 19 23 25 On Entrance 14 | 6 6 15 17 19 25 Naked Turns . | . . . . . . Heaviest Build 98 | 12 91 92 95 98 97 Greatest Support 46 | 20 40 40 40 46 46 Greatest Overweight (x) 9 | . 2 9 9 4 2 Average Overweight (x) 2 | . . 4 2 2 2 Largest Inventory Capacity 25 | . 25 25 25 25 25 Average Capacity 23 | . 17 25 25 25 25 Most Carried 25 | . 24 25 25 25 25 Average Carried 22 | . 15 24 24 24 25 Final Capacity 25 | 8 25 25 25 25 25 Final Carried 25 | 6 24 25 25 25 25 Class Distribution -------------------- 38% | Commander-Mutant 35% | Mutant 15% | Hacker-Mutant 11% | Scavenger-Mutant Dominant Class ---------------- Mutant | -10/Materials Mutant | -10/Mines Hacker-Mutant | -9/Materials Commander-Mutant | -9/Storage Hacker-Mutant | -9/Recycling Resources | -11 -10 -10 -9 -9 -9 ----------- Run | Yrd Mat Min Mat Sto Rec Matter Collected 2892 | 200 465 247 382 1598 . Remotely . | . . . . . . Salvage Created 3188 | . 485 392 676 1635 . Parts 218 | . 41 20 52 105 . Haulers Intercepted 6 | . . . 2 4 . Recyclers Shooed 2 | . . . . 2 . Parts Field Recycled . | . . . . . . Retrieved Matter . | . . . . . . Parts Self-Destructed . | . . . . . . Prevented . | . . . . . . Kills | -11 -10 -10 -9 -9 -9 ------- Run | Yrd Mat Min Mat Sto Rec Combat Hostiles Destroyed 67 | . 12 9 15 31 . Guns 54 | . 12 7 5 30 . Cannons 13 | . . 2 10 1 . Classes Destroyed 13 | . 5 2 2 4 . Worker 4 | . 1 . 3 . . Tunneler 1 | . . 1 . . . Hauler 6 | . . . 2 4 . Recycler 2 | . . 1 . 1 . Mechanic 1 | . . . . 1 . Operator 1 | . 1 . . . . Watcher 8 | . 3 . 3 2 . Swarmer 15 | . 4 3 3 5 . Grunt 36 | . 8 6 8 14 . Brawler 1 | . . . . 1 . Duelist 1 | . . . . 1 . Protector 1 | . . . . 1 . Sentry 13 | . . . 4 9 . Best Kill Streak 5 | . 4 5 4 5 . Combat Bots Only 5 | . 4 5 4 5 . Max Kills in Single Turn 2 | . 1 2 2 2 . Gunslinging 1 | . . . . 1 . Exploded . | . . . . . . Melee . | . . . . . . Uniques/NPCs Destroyed . | . . . . . . Combat | -11 -10 -10 -9 -9 -9 -------- Run | Yrd Mat Min Mat Sto Rec Hostile Shots Fired 350 | . 43 51 74 180 2 Missed 98 | . 13 11 20 54 . Damage Taken 3240 | . 307 602 712 1589 30 Core 563 | . 62 101 164 220 16 Absorbed by Shields . | . . . . . . Core Remaining (%) 67 | 100 . 34 . . . Volleys Fired 245 | . 47 33 50 115 . Largest 2 | . 2 2 2 2 . Hottest 100 | . 100 62 62 62 . Shots Fired 478 | . 92 57 100 229 . Gun 427 | . 90 54 55 228 . Cannon 49 | . . 3 45 1 . Launcher . | . . . . . . Special 2 | . 2 . . . . Kinetic 475 | . 89 57 100 229 . Thermal 3 | . 3 . . . . Explosive . | . . . . . . Electromagnetic . | . . . . . . Robot Hit Streak 15 | . 11 7 15 15 . Robot Miss Streak 9 | . 9 3 3 4 . Penetration Max . | . . . . . . Secondary Targets 5 | . . 1 1 3 . Max Gunslinging Chain 1 | . . 1 1 1 . Shots Hit Robots 316 | . 55 33 68 160 . Core Hits 127 | . 20 16 30 61 . Critical Kills 2 | . . 1 . 1 . Critical Parts Destroyed . | . . . . . . Critical Strikes 2 | . . 1 . 1 . Destroy 2 | . . 1 . 1 . Melee Attacks . | . . . . . . Impact . | . . . . . . Slashing . | . . . . . . Piercing . | . . . . . . Sneak Attacks . | . . . . . . Combat Hostiles . | . . . . . . Follow-up Attacks . | . . . . . . Damage Inflicted 5111 | . 881 557 1225 2448 . Guns 4333 | . 878 496 535 2424 . Cannons 775 | . . 61 690 24 . Explosions . | . . . . . . Melee . | . . . . . . Ramming 3 | . 3 . . . . Kinetic 5098 | . 868 557 1225 2448 . Thermal 10 | . 10 . . . . Explosive . | . . . . . . Electromagnetic . | . . . . . . Impact . | . . . . . . Slashing . | . . . . . . Piercing . | . . . . . . Highest Corruption . | . . . . . . Average Corruption . | . . . . . . Corruption Purged . | . . . . . . Corruption Blocked . | . . . . . . Overload Shots . | . . . . . . Overflow Damage . | . . . . . . Projectiles . | . . . . . . Explosions . | . . . . . . Melee . | . . . . . . Knockbacks 8 | . . . 8 . . Impact . | . . . . . . Kinetic 6 | . . . 6 . . Secondary 2 | . . . 2 . . Self-Inflicted Damage . | . . . . . . Shots . | . . . . . . Rammed . | . . . . . . Targets Rammed 1 | . 1 . . . . Kicked . | . . . . . . Crushed 1 | . 1 . . . . Highest Temperature 306 | . 32 60 129 306 . Average Temperature 24 | . 9 25 39 20 . Received Heat Transfer 1299 | . 135 222 240 693 9 Siege Activations . | . . . . . . Robots Corrupted . | . . . . . . Combat Hostiles . | . . . . . . Parts Fried . | . . . . . . Impact Corruptions . | . . . . . . Robots Melted . | . . . . . . Combat Hostiles . | . . . . . . Parts Melted . | . . . . . . Heat Transferred 25 | . 25 . . . . Parts Sabotaged . | . . . . . . Parts Stolen . | . . . . . . Parts Stripped . | . . . . . . Power Chain Reactions . | . . . . . . Alert | -11 -10 -10 -9 -9 -9 ------- Run | Yrd Mat Min Mat Sto Rec Peak Influence 521 | . 230 200 143 521 93 Initial 63 | . . . . 55 63 Average 139 | . 63 53 42 256 85 Maximum Alert Level 2 | . 1 1 . 2 . Low Security (%) 67 | . 92 84 100 33 100 Level 1 27 | . 7 15 . 53 . Level 2 5 | . . . . 13 . Level 3 . | . . . . . . Level 4 . | . . . . . . Level 5 . | . . . . . . High Security . | . . . . . . Max Security . | . . . . . . Squads Dispatched 8 | . 2 . 1 5 . Investigation 5 | . 1 . 1 3 . Extermination . | . . . . . . Reinforcement 1 | . 1 . . . . Assault 2 | . . . . 2 . Garrison . | . . . . . . Intercept . | . . . . . . Searches Triggered . | . . . . . . Construction Impeded . | . . . . . . Haulers Reinforced . | . . . . . . Active Scanning Responses . | . . . . . . Cargo Convoy Interrupts . | . . . . . . Stealth | -11 -10 -10 -9 -9 -9 --------- Run | Yrd Mat Min Mat Sto Rec Distress Signals 5 | . 1 . 2 2 . Communications Jammed . | . . . . . . Distress Signals . | . . . . . . Times Spotted 108 | . 21 10 20 57 . Peak Tracking Total 10 | . 3 4 5 10 . Tactical Retreats 5 | . 1 . . 4 . Traps | -11 -10 -10 -9 -9 -9 ------- Run | Yrd Mat Min Mat Sto Rec Traps Triggered 1 | . . . . 1 . Indirectly . | . . . . . . Trap Hack Attempts 35 | . . . . 35 . Triggered . | . . . . . . Disarmed . | . . . . . . Reprogrammed 8 | . . . . 8 . Reused 2 | . . . . 2 . Traps Extracted . | . . . . . . Installed . | . . . . . . Triggered 3 | . . 1 . 2 . Machines | -11 -10 -10 -9 -9 -9 ---------- Run | Yrd Mat Min Mat Sto Rec Machines Disabled 5 | . 2 3 . . . Max in Single Turn 1 | . 1 1 . . . Machines Repaired . | . . . . . . Machines Dismantled . | . . . . . . Machines Sabotaged . | . . . . . . Overloaded Fab Kills . | . . . . . . Hacking | -11 -10 -10 -9 -9 -9 --------- Run | Yrd Mat Min Mat Sto Rec Machines Accessed 25 | . 8 . 2 13 2 Terminals 20 | . 6 . 2 11 1 Fabricators . | . . . . . . Repair Stations . | . . . . . . Recycling Units 5 | . 2 . . 2 1 Scanalyzers . | . . . . . . Garrison Access . | . . . . . . Total Hacks 91 | . 28 . 8 47 8 Successful 63 | . 17 . 4 37 5 Failed 28 | . 11 . 4 10 3 Catastrophic 1 | . . . 1 . . Database Lockouts . | . . . . . . Manual 71 | . 24 . 8 33 6 Terminals 79 | . 22 . 8 44 5 Fabricators . | . . . . . . Repair Stations . | . . . . . . Recycling Units 12 | . 6 . . 3 3 Scanalyzers . | . . . . . . Garrison Access . | . . . . . . Terminal Hacks 23 | . 2 . . 20 1 Record 2 | . . . . 2 . Part Schematic 2 | . . . . 2 . Robot Schematic 1 | . . . . 1 . Robot Analysis 4 | . 1 . . 3 . Open Door 4 | . . . . 4 . Terminal Index 2 | . 1 . . 1 . Alert Level 2 | . . . . 2 . Unreport Threat 3 | . . . . 3 . Security Status 1 | . . . . 1 . Surveillance Status 1 | . . . . 1 . Zone Layout 1 | . . . . . 1 Fabricator Hacks . | . . . . . . Repair Station Hacks . | . . . . . . Recycling Unit Hacks 6 | . 3 . . 2 1 Report Inventory 2 | . 1 . . 1 . Retrieve Components 4 | . 2 . . 1 1 Scanalyzer . | . . . . . . Garrison Access Hacks . | . . . . . . Unauthorized Hacks 34 | . 12 . 4 15 3 Terminals 31 | . 11 . 4 14 2 Assimilate 7 | . 5 . 1 1 . Botnet 14 | . 4 . 2 7 1 Disrupt 1 | . . . . 1 . Operators 4 | . 2 . 1 1 . Skim 5 | . . . . 4 1 Fabricators . | . . . . . . Repair Stations . | . . . . . . Recycling Units 3 | . 1 . . 1 1 Tunnel 3 | . 1 . . 1 1 Scanalyzers . | . . . . . . Garrison Access . | . . . . . . Data Cores Recovered . | . . . . . . Used . | . . . . . . Hacking Detections 18 | . 8 . 2 8 . Full Trace Events 4 | . 2 . 1 1 . Feedback Events . | . . . . . . Feedback Blocked . | . . . . . . Robot Schematics Acquired 1 | . . . . 1 . Robots Built . | . . . . . . Authchips . | . . . . . . Time . | . . . . . . Total Robot Build Rating . | . . . . . . Part Schematics Acquired 2 | . . . . 2 . Parts Built . | . . . . . . Authchips . | . . . . . . Time . | . . . . . . Total Part Build Rating . | . . . . . . Parts Repaired . | . . . . . . Time . | . . . . . . Parts Recycled . | . . . . . . Recycled Matter . | . . . . . . Retrieved Matter . | . . . . . . Retrieved Components 15 | . 2 . . 10 3 Parts Scanalyzed . | . . . . . . Part Schematics Acquired . | . . . . . . Parts Damaged . | . . . . . . Bothacking | -11 -10 -10 -9 -9 -9 ------------ Run | Yrd Mat Min Mat Sto Rec Used RIF Installer . | . . . . . . Robots Hacked . | . . . . . . Non-combat . | . . . . . . Combat . | . . . . . . Robot Hacks Applied . | . . . . . . Relay Couplers Released . | . . . . . . Fabnet Peak Effective % . | . . . . . . Robots Rewired . | . . . . . . Allies Hacked . | . . . . . . Hacks Repelled . | . . . . . . Allies | -11 -10 -10 -9 -9 -9 -------- Run | Yrd Mat Min Mat Sto Rec Total Allies 13 | . 1 . . 12 . Largest Group 10 | . 1 . . 10 . Highest-Rated Group 88 | . 10 . . 88 . Highest-Rated Ally 31 | . 10 . . 31 . Total Orders 1 | . . . . 1 . STAY 1 | . . . . 1 . Ally Attacks 62 | . . . . 62 . Total Damage 791 | . . . . 791 . Kills 8 | . . . . 8 . Allies Corrupted . | . . . . . . Allies Melted . | . . . . . . Intel | -11 -10 -10 -9 -9 -9 ------- Run | Yrd Mat Min Mat Sto Rec Robot Analysis Total 4 | . 1 . . 3 . Derelict Logs Recovered 1 | . . 1 . . . Drone Launches . | . . . . . . Drone Recoveries . | . . . . . . Exploration | -11 -10 -10 -9 -9 -9 ------------- Run | Yrd Mat Min Mat Sto Rec Turns Passed 7811 | . 1442 1660 1245 3292 172 Spaces Moved 2160 | 1 651 379 294 781 54 Core . | . . . . . . Treads 1586 | . 508 28 215 781 54 Legs 442 | 1 11 351 79 . . Wheels 132 | . 132 . . . . Hover . | . . . . . . Flight . | . . . . . . Fastest Speed 95 | 120 95 320 320 320 320 Average Speed 298 | 120 185 406 348 320 320 Slowest Speed 750 | 120 320 750 750 480 320 Overloaded Moves . | . . . . . . Propulsion Burnouts . | . . . . . . Robots Hopped . | . . . . . . Cave-ins Triggered . | . . . . . . Exploration Rate (%) 48 | 2 79 75 30 93 12 Regions Visited 5 Branch Regions 3 Pre-discovered Areas 3 | . 1 . . 1 1 Known Exits Taken 1 | . . . 1 . . Unknown Exits Taken 4 | 1 1 1 . 1 . Scrap Searched 1 | . . 1 . . . Spaces Dug 2 | . 2 . . . . Terrain Destroyed 3 | . 2 . 1 . . Melee . | . . . . . . Projectile 3 | . 2 . 1 . . AOE . | . . . . . . Terrain Rammed . | . . . . . . Walls Destroyed . | . . . . . . Machines Disabled . | . . . . . . Actions | -11 -10 -10 -9 -9 -9 --------- Run | Yrd Mat Min Mat Sto Rec Total 3152 | . 813 455 430 1400 54 Wait 521 | . 62 37 57 365 . Move 2155 | . 650 378 293 780 54 Hop . | . . . . . . Pick Up 59 | . 28 1 8 22 . Fast Attach 14 | . 3 2 1 8 . Attach 10 | . . 2 6 2 . Detach 2 | . . 1 . 1 . Swap 43 | . 8 1 6 28 . Drop 67 | . 14 . 9 44 . Fire 245 | . 47 33 50 115 . Melee . | . . . . . . Ram . | . . . . . . Kick . | . . . . . . Crush 1 | . 1 . . . . Escape Stasis . | . . . . . . Rewire . | . . . . . . Trap 35 | . . . . 35 . Miscellaneous . | . . . . . . Route ------- -11/Scrapyard -10/Materials (discovered 3 exits: *Mat x2 / [*Min]) -10/Mines -9/Materials (discovered 4 exits: [*Mat] / [*Min x2] / *Sto) -9/Storage (discovered 2 exits: [*Mat] / *Rec) -9/Recycling History --------- Turn | Location | Event 1 | -11/Scrapyard | Discovered new exit (range 0) 1 | -11/Scrapyard | Entered Materials 167 | -10/Materials | Discovered new exit (range 12) 170 | -10/Materials | Discovered new exit (range 16) 310 | -10/Materials | Build established: Mutant 588 | -10/Materials | Discovered new exit (range 16) 1443 | -10/Materials | Entered Mines 1791 | -10/Mines | Assembled infested the area 2240 | -10/Mines | Core integrity fell below 50% 2558 | -10/Mines | Discovered new exit (range 3) 3057 | -10/Mines | Build established: Scavenger-Mutant 3103 | -10/Mines | Entered Materials 3103 | -9/Materials | Evolved 2 slots: Utility x2 3104 | -9/Materials | Identified exit to Storage 3651 | -9/Materials | Discovered new exit (range 16) 3711 | -9/Materials | Build established: Hacker-Mutant 3943 | -9/Materials | Discovered new exit (range 15) 4210 | -9/Materials | Discovered new exit (range 12) 4348 | -9/Materials | Entered Storage 4368 | -9/Storage | Met a pair of Derelict thieves 4678 | -9/Storage | Assisted by bots powering up and referring to "LRC-V3" 4787 | -9/Storage | Core integrity fell below 50% 4840 | -9/Storage | Lost 4 allies 4977 | -9/Storage | Build established: Commander-Mutant 5994 | -9/Storage | Core integrity fell below 20% 7102 | -9/Storage | Discovered new exit (range 5) 7633 | -9/Storage | Used back door to open Recycling access 7633 | -9/Storage | Discovered new exit (range 3) 7640 | -9/Storage | Entered Recycling 7812 | -9/Recycling | Destroyed by Y-45 Defender with Heavy Assault Rifle Last Messages --------------- Testing... Terminal linked with 0 systems. Awaiting botnet instructions. >>Trojan(Skim) Trojan loaded successfully. Testing... Terminal linked with 0 systems. Please expand to 4 more systems! >>Layout(Zone) Retrieving Zone 5M layout... Downloaded map data. 07685_ Connecting with Recycling Unit... >>Retrieve(Components) Retrieving 3 components... EM Shotgun Shield Generator Shield Generator >>Force(Tunnel) DISCOVERED[-3/Research] 07812_ Y-45 Defender springs to life. Map ----- +----------------------------------------------------+ | ?????????????????????????????????? | | ?????????????????????????????????? | | ?????????????????????????????????? | | ?????????????????????????????????? | | ?????????????????????????????????? | | ?????????????????????????????????? | | ?????????????????????????????????? | | ?????????????????????????????????? | | ?????????????????????????????????? | | ?????????????????????????????????? | | ?????????????????????????????????? | | ?????????????????????????????????? | | ?????????????????????????????????? | | ?????????????????????????????????? | | ?????????????????????????????????? | | ?????????????????????????????????? | | ?????????????????????????????????? | | ???????#######????#??????????????? | | ???????# ####Y## ????????????? | | ???????# ????????????? | | ???????# ????????????? | | ???????# ????????????? | | ???????# u#####+##????????????? | | ???????## ##?# ????????????? | | ???????#Y #??# ????????????? | | ???????##@ #??# ????????????? | | ??????### #??# ????????????? | | ??????#"" #??# ????????????? | | ??????#"Y[ #??## ###????????????? | | ??????#"" ! #???###??????????????? | | ??####### ! ##########???????????? | | ??# # # !#???????????? | | ??# "" # #! #???????????? | | ??# "T # # ! ! #???????????? | | ??# "" + # ! !!#???????????? | | ??# # # !!! #???????????? | | ??# " # #! ! #???????????? | | ??#""" + + ! ! #???????????? | | ??#"" # # #???????????? | | ??#""" # # ! #???????????? | | ??# "" # ##########???????????? | | ??#""" # #????????????????????? | | ??#""" # #????????????????????? | | ??#""" #####????????????????????? | | ??# " #????????????????????????? | | ??# #????????????????????????? | | ??#######????????????????????????? | | ?????????????????????????????????? | | ?????????????????????????????????? | | | +----------------------------------------------------+ Best States ------------- Heat Dissipation 28 Energy Generation 18 Energy Capacity 280 Matter Stores 300 Matter Capacity 300 Sight Range 16 Terrain Scan Density 10 Armor Coverage 150 Evasion (%) 45 Recoil Reduction 2 Offensive Hacking 20 Item Schematics ----------------- Reactive Plating | -9/Storage | Hacked Imp. Shield Generator | -9/Storage | Hacked Robot Schematics ------------------ L-31 Rogue | -9/Storage | Hacked Fabricated ------------ Nothing Alien Tech Used ----------------- None Achievements -------------- None Challenges ------------ None Game ------ Seed ImpactPowerCycler Manual? 0 Play Time 00:40:43 Cumulative 105.9 hours Start 2024.11.17 @ 18:28:27 End 2024.11.17 @ 19:08:37 Sessions 1 Manual Loads 0 Difficulty Rogue Special Mode None Game No. 190 Rogue 190 Adventurer 0 Explorer 0 Win Type - Total 0 Types 0/0/0/0/0/0/0/0/0 Lore% 42 Gallery% 39 Achievement% 35 Wizard Run 0 Options --------- Layout 0 ASCII 0 Keyboard 0 Movement Mouse Keybinds 0 Fullscreen 1 Font 24/Cog Map View 91x25 Zoom Use 93% Tactical HUD 1 Map Filters NONE Filters NONE Steam 1 RUN: 3544db61-07b2-4dfc-9489-3f7aa3fef307